bitfinex-derivatives/quotes_ETHF0:USTF0_20250404
["timestamp","ask_amount","ask_price","bid_price","bid_amount"]
[1743780369462,2.1403,1804.1,1804.0,1.11744486]
[1743780369664,7.6787,1804.1,1804.0,1.11744486]
[1743780370053,7.6787,1804.1,1804.0,0.00831486]
[1743780370258,3.2078,1804.4,1804.0,3.21611486]
[1743780370564,0.00831486,1804.6,1804.1,2.1851]
[1743780370565,5.5384,1804.5,1804.1,2.1851]
[1743780370765,5.5384,1804.5,1804.4,1.10893]
[1743780370960,12.72501034,1804.6,1804.3,1.10899]
[1743780370961,5.5384,1804.4,1804.3,1.10899]
[1743780371161,0.00831486,1804.6,1804.5,1.10887]
[1743780371360,4.86e-06,1804.6,1804.5,51.14667]
[1743780371563,2.1403,1805.5,1805.4,1.10831]
[1743780371963,7.6787,1805.5,1805.4,1.10831]
[1743780372163,15.05086013,1805.5,1805.4,1.10831]
[1743780372357,13.90808041,1805.5,1805.4,44.02061]
[1743780372565,12.25142041,1805.5,1805.4,46.52061]
[1743780372764,12.25142041,1805.5,1805.4,44.02061]
[1743780372974,11.14241041,1805.5,1805.4,44.02061]
[1743780373260,1.10831,1805.4,1805.3,0.00831486]
[1743780373466,10.8364,1805.4,1804.7,5.3201]
[1743780373667,3.2078,1805.2,1805.0,1.10854]
[1743780373959,1.10861,1805.0,1804.4,6.013]
[1743780374155,2.0902,1804.9,1804.5,2.1123]
[1743780374358,5.298,1804.9,1804.6,1.10879]
[1743780374559,5.5384,1804.8,1804.6,40.8]
[1743780374768,7.6286,1804.8,1804.7,1.10874]
[1743780375270,3.2078,1805.4,1804.7,4.31654]
[1743780375565,7.6847,1805.3,1805.2,1.10844]
[1743780375767,7.6847,1805.3,1805.1,1.10846]
[1743780375966,5.5384,1805.2,1805.1,1.1085]
[1743780376169,7.6847,1805.2,1805.1,1.1085]
[1743780376468,0.00831486,1805.6,1805.1,1.1085]
[1743780376662,8.7462,1805.5,1805.0,3.2078]
[1743780376968,1.10847,1805.2,1805.0,1.10853]
[1743780377168,2.1463,1805.1,1805.0,1.10853]
[1743780377366,5.5384,1805.4,1805.3,1.10838]
[1743780377571,2.1463,1805.5,1805.4,1.10831]
[1743780377759,2.1463,1805.5,1805.2,2.7711]
[1743780377760,7.6847,1805.5,1805.2,2.0982]
[1743780377966,7.6847,1805.5,1805.1,3.2078]
[1743780377967,5.5384,1805.4,1805.1,3.2078]
[1743780378164,7.6847,1805.4,1805.3,1.10838]
[1743780378666,0.00831486,1805.6,1805.5,1.10825]
[1743780378864,5.54671486,1805.6,1805.5,1.10825]
[1743780379073,0.00831486,1805.6,1805.5,1.10825]
[1743780379277,10.73427366,1806.1,1805.8,2.77014]
[1743780379567,5.5384,1806.0,1805.9,3.2078]
[1743780379782,7.6109,1806.0,1805.9,49.27138125]
[1743780379966,16.08859,1806.0,1805.0,4.97831]
[1743780380172,1.10816,1805.7,1805.2,2.7711]
[1743780380374,2.0725,1805.6,1805.5,1.1082]
[1743780380673,7.61921486,1805.6,1805.4,1.10826]
[1743780380870,8.7462,1805.5,1805.3,0.00831486]
[1743780381073,3.18081,1805.4,1805.3,0.00831486]
[1743780381270,1.10873,1804.8,1804.6,1.10881]
[1743780381472,3.2078,1804.9,1804.4,3.2078]
[1743780381670,6.047,1805.1,1804.5,5.23045]
[1743780381671,16.62339548,1805.1,1804.5,5.23045]
[1743780381870,5.5384,1805.0,1804.9,1.10862]
[1743780382267,5.5384,1805.0,1804.3,7.28898748]
[1743780382268,18.61479548,1805.0,1804.3,7.28898748]
[1743780382577,0.00831486,1805.1,1805.0,1.10856]
[1743780382773,5.54671486,1805.1,1805.0,1.10856]
[1743780382977,5.54671486,1805.1,1804.9,2.4583]
[1743780382978,6.65523486,1805.1,1804.9,1.10859]
[1743780383175,5.5384,1805.0,1804.9,1.10862]
[1743780383372,1.10876,1804.7,1804.5,0.00831486]
[1743780383675,5.5384,1804.9,1804.5,0.00831486]
[1743780383879,3.2078,1804.8,1804.6,1.1088]
[1743780384074,1.10874,1804.7,1804.5,0.00831486]
[1743780384277,6.64719,1804.7,1804.5,1.11714486]
[1743780384474,2.3884,1804.6,1804.5,1.11714486]
[1743780384777,2.3884,1804.6,1804.5,0.00831486]
[1743780384778,12.24341,1804.6,1804.5,0.00831486]
[1743780384975,1.10925,1803.9,1803.4,2.77382]
[1743780385177,3.2078,1804.3,1803.5,2.4042]
[1743780385375,2.3884,1804.6,1804.4,1.10888]
[1743780385683,8.7462,1804.5,1803.8,2.77319]
[1743780385878,8.7462,1804.5,1804.2,1.10904]
[1743780386177,3.2078,1804.3,1804.2,0.00831486]
[1743780386379,0.00831486,1804.5,1804.2,1.11736486]
[1743780386582,6.64737,1804.4,1804.2,1.11732486]
[1743780386770,0.00831486,1804.5,1804.4,1.10893]
[1743780386970,0.00831486,1804.5,1804.2,0.00831486]
[1743780386971,1.10899,1804.3,1804.2,0.00831486]
[1743780387171,4.31679,1804.3,1804.2,0.00831486]
[1743780387376,12.90699548,1804.3,1804.2,1.11736486]
[1743780387577,5.5384,1804.3,1804.2,1.11736486]
[1743780387773,0.00831486,1804.5,1804.2,40.80831486]
[1743780387974,6.64735,1804.4,1804.2,41.91733486]
[1743780388178,5.5384,1804.4,1804.3,1.10899]
[1743780388373,3.55808486,1804.5,1804.4,1.10893]
[1743780388582,2.44921486,1804.5,1804.2,40.80831486]
[1743780388777,0.00831486,1804.5,1804.4,1.10893]
[1743780389475,6.65560486,1804.5,1804.3,1.10896]
[1743780389680,7.9793,1804.4,1804.3,1.10896]
[1743780390485,2.4409,1804.4,1804.3,1.10896]
[1743780390981,0.00831486,1804.5,1804.4,1.10893]
[1743780391391,4.86e-06,1804.5,1804.4,46.64103]
[1743780391582,4.86e-06,1804.5,1804.4,44.14103]
[1743780392185,4.86e-06,1804.5,1804.4,46.64103]
[1743780392388,4.86e-06,1804.5,1804.4,44.14103]
[1743780392790,5.53840486,1804.5,1804.2,0.00831486]
[1743780392983,4.86e-06,1804.5,1804.3,3.2078]
[1743780393184,4.86e-06,1804.5,1804.4,1.10893]
[1743780393185,7.88220486,1804.5,1804.4,1.10893]
[1743780393489,4.86e-06,1804.5,1804.4,1.10893]
[1743780393692,4.86e-06,1804.5,1804.4,41.90893]
[1743780394190,4.86e-06,1804.5,1804.4,45.11673]
[1743780394579,4.86e-06,1804.5,1804.2,11.42921486]
[1743780394885,1.10899,1804.3,1804.2,0.00831486]
[1743780395282,7.8075,1804.3,1804.2,1.11736486]
[1743780395488,4.86e-06,1804.5,1804.4,1.10893]
[1743780395678,4.86e-06,1804.5,1804.4,4.31673]
[1743780395885,4.86e-06,1804.5,1804.4,11.53296592]
[1743780396092,4.86e-06,1804.5,1804.4,8.32516592]
[1743780396293,4.86e-06,1804.5,1804.4,1.10893]
[1743780396486,4.86e-06,1804.5,1804.4,41.90893]
[1743780396790,1.10899,1804.3,1804.2,0.00831486]
[1743780396990,4.31679,1804.3,1804.2,0.00831486]
[1743780397191,17.22378548,1804.3,1804.2,0.00831486]
[1743780397490,19.67728548,1804.3,1804.2,0.00831486]
[1743780397885,2.4535,1804.3,1804.2,1.11736486]
[1743780398095,16.46948548,1804.3,1804.2,0.00831486]
[1743780399092,16.46948548,1804.3,1804.2,4.86e-06]
[1743780399494,18.96948548,1804.3,1804.2,4.86e-06]
[1743780399791,1.10934,1803.8,1803.3,2.2894]
[1743780399987,2.2794,1803.7,1803.6,1.10942]
[1743780400184,1.10915,1804.1,1803.6,2.2277]
[1743780400382,2.2794,1804.0,1803.9,1.10924]
[1743780400582,5.54345,1804.8,1804.4,1.10893]
[1743780400583,21.1472757,1804.7,1804.4,1.10893]
[1743780400793,5.53840486,1804.5,1804.4,1.10893]
[1743780400994,4.86e-06,1804.5,1804.4,1.10893]
[1743780401296,4.86e-06,1804.5,1804.4,4.31673]
[1743780401496,4.86e-06,1804.5,1804.4,6.81673]
[1743780401795,7.94418056,1804.7,1804.6,1.10881]
[1743780401993,5.5384,1804.7,1804.6,4.31661]
[1743780402297,11.7030957,1805.1,1805.0,1.10856]
[1743780402494,19.5208957,1805.1,1804.7,5.4355]
[1743780402695,5.5384,1805.0,1804.7,1.10873]
[1743780402890,7.8111,1804.9,1804.5,1.10883]
[1743780403095,2.2727,1804.9,1804.3,3.21611486]
[1743780403300,1.10891,1804.5,1804.3,0.00831486]
[1743780403498,1.10893,1804.4,1804.3,1.11730486]
[1743780403700,4.31673,1804.4,1804.3,0.00831486]
[1743780403997,4.31673,1804.4,1803.9,1.10921]
[1743780403998,1.10936,1803.7,1803.2,1.10962]
[1743780404203,3.2078,1803.4,1802.8,2.3491]
[1743780404496,1.10971,1803.2,1802.9,1.10985]
[1743780404700,1.10971,1803.2,1803.0,41.90979]
[1743780404899,4.31735,1803.4,1803.0,40.8]
[1743780405087,0.00831486,1803.3,1803.2,1.10967]
[1743780405801,1.10946,1803.6,1803.2,2.5]
[1743780405996,5.5384,1803.5,1803.3,1.10957]
[1743780406196,2.4324,1803.5,1803.4,1.10954]
[1743780406501,7.9708,1803.5,1803.4,1.10954]
[1743780406698,1.10936,1803.7,1803.4,1.10954]
[1743780406997,1.10953,1803.5,1803.4,0.00831486]
[1743780407204,5.5384,1803.6,1803.4,0.00831486]
[1743780407388,1.10948,1803.5,1803.4,0.00831486]
[1743780407591,9.08028,1803.5,1803.4,0.00831486]
[1743780407788,1.10973,1803.1,1803.0,40.8]
[1743780408199,6.64813,1803.1,1803.0,40.8]
[1743780408893,14.01672062,1803.1,1803.0,40.8]
[1743780409099,2.4324,1803.3,1803.0,40.8]
[1743780409299,1.10973,1803.1,1803.0,40.8]
[1743780409497,1.10973,1803.1,1803.0,39.37253]
[1743780409698,2.77464,1802.9,1802.0,3.2078]
[1743780409891,2.3972,1802.8,1802.3,1.11017]
[1743780410092,1.1101,1802.5,1802.4,40.8]
[1743780410298,8.75451486,1802.7,1802.4,40.8]
[1743780410498,0.00831486,1802.7,1802.6,1.11004]
[1743780410696,8.64498674,1803.4,1803.3,1.10961]
[1743780410905,8.64498674,1803.4,1803.3,4.31741]
[1743780411201,8.64498674,1803.4,1803.3,45.11741]
[1743780411596,8.64498674,1803.4,1803.3,40.8]
[1743780411796,25.12561736,1803.4,1803.3,40.8]
[1743780411996,8.64498674,1803.4,1803.3,41.90961]
[1743780412300,8.64498674,1803.4,1803.3,44.27631]
[1743780413603,0.00831486,1803.5,1803.4,1.10954]
[1743780413900,2.47241486,1803.5,1803.4,4.31734]
[1743780414202,0.00831486,1803.5,1803.4,9.18404]
[1743780414396,0.00831486,1803.5,1803.4,6.68404]
[1743780414802,4.86e-06,1803.5,1803.4,9.18404]
[1743780414998,5.53840486,1803.5,1803.3,40.8]
[1743780415203,8.0123,1803.4,1803.3,41.90961]
[1743780415399,8.0123,1803.4,1803.2,0.00831486]
[1743780415601,6.64801,1803.3,1803.2,0.00831486]
[1743780415802,9.12191,1803.3,1803.2,0.00831486]
[1743780415999,9.12191,1803.3,1803.2,40.80831486]
[1743780416405,8.0123,1803.3,1803.2,40.80831486]
[1743780416698,9.12191,1803.3,1803.2,40.80831486]
[1743780417503,16.49050062,1803.3,1803.2,0.00831486]
[1743780417905,16.49050062,1803.3,1803.2,40.80831486]
[1743780418398,1.10991,1802.8,1802.7,2.3631]
[1743780418601,1.10991,1802.8,1802.6,3.2078]
[1743780418602,2.77455,1803.0,1802.6,4.31779]
[1743780418801,3.54307,1802.7,1802.6,3.2078]
[1743780419007,3.54307,1802.7,1802.6,45.11784]
[1743780419204,7.9715,1802.7,1802.6,44.0078]
[1743780419408,5.5384,1802.7,1802.6,45.11784]
[1743780419705,6.64837,1802.7,1802.6,44.0078]
[1743780420102,5.5384,1802.7,1802.6,45.11784]
[1743780420306,6.64837,1802.7,1802.6,40.8]
[1743780420501,1.11004,1802.6,1802.5,0.00831486]
[1743780420696,5.5384,1802.7,1802.5,3.21611486]
[1743780420906,2.3263,1803.1,1803.0,1.10979]
[1743780421208,9.90305222,1803.1,1803.0,40.8]
[1743780421505,15.44145222,1803.1,1803.0,40.8]
[1743780422404,1.10997,1802.7,1802.6,3.2078]
[1743780422703,1.11004,1802.6,1802.5,0.00831486]
[1743780422905,1.10988,1802.9,1802.7,1.10994]
[1743780423204,7.8647,1802.9,1802.8,1.10991]
[1743780423404,7.8647,1802.9,1802.8,4.31771]
[1743780423602,7.8647,1802.9,1802.8,3.2078]
[1743780423808,6.46702222,1803.1,1803.0,1.10979]
[1743780424109,6.46702222,1803.1,1803.0,4.31759]
[1743780424812,2.2939,1803.3,1803.1,1.1097]
[1743780424813,9.87056222,1803.3,1803.1,1.1097]
[1743780425008,6.46702222,1803.3,1803.2,4.31747]
[1743780425405,5.34770222,1803.3,1803.2,14.08185162]
[1743780425606,5.34770222,1803.3,1803.2,54.88185162]
[1743780425908,10.80623342,1803.5,1803.2,54.4811]
[1743780426098,1.67783994,1803.5,1803.4,4.31734]
[1743780426409,1.67783994,1803.5,1803.4,10.15734]
[1743780426603,1.67783994,1803.5,1803.4,12.65734]
[1743780426812,1.67783994,1803.5,1803.4,53.45734]
[1743780427106,2.78731994,1803.5,1803.4,44.0078]
[1743780427305,1.67783994,1803.5,1803.4,45.11734]
[1743780427807,1.67783994,1803.5,1803.4,47.61734]
[1743780428110,1.67783994,1803.5,1803.4,57.32677617]
[1743780428311,0.00831486,1803.6,1803.5,1.10948]
[1743780428510,4.86e-06,1803.6,1803.5,3.58808]
[1743780428706,12.2582957,1804.7,1803.9,2.77303]
[1743780429008,2.3892,1804.5,1804.4,1.10893]
[1743780429212,17.2414957,1804.7,1804.4,44.0078]
[1743780429511,9.9239457,1804.7,1804.6,4.31661]
[1743780430015,9.9239457,1804.7,1804.6,14.10962965]
[1743780430312,9.9239457,1804.7,1804.6,12.65061]
[1743780431913,6.5009557,1804.7,1804.6,19.91842933]
[1743780432210,2.264,1805.6,1805.3,1.10834]
[1743780432412,2.264,1805.6,1805.2,6.9124]
[1743780432617,5.5384,1805.5,1805.3,3.2078]
[1743780432819,2.264,1805.4,1805.0,2.4549]
[1743780433112,1.10854,1805.1,1804.7,4.31652]
[1743780433303,2.4193,1805.0,1804.9,3.2078]
[1743780433614,5.5384,1805.3,1805.2,1.10844]
[1743780433914,0.00831486,1805.4,1805.3,1.10838]
[1743780434116,0.00831486,1805.4,1805.3,3.57108]
[1743780434315,0.00831486,1805.4,1805.3,6.07108]
[1743780434519,0.00831486,1805.4,1805.3,46.87108]
[1743780435414,0.00831486,1805.4,1805.3,44.37108]
[1743780435911,0.00831486,1805.4,1805.3,43.2627]
[1743780436123,12.91530548,1805.4,1804.9,5.754]
[1743780436412,1.10884,1804.6,1804.4,3.2078]
[1743780436623,3.2078,1805.0,1804.4,1.10893]
[1743780436624,2.4397,1804.5,1804.4,1.10893]
[1743780436922,10.56807576,1805.0,1804.6,1.10879]
[1743780437123,9.08674,1804.9,1804.5,3.56953]
[1743780437414,3.2078,1804.8,1804.2,8.63524895]
[1743780437609,1.10881,1804.6,1804.3,1.10897]
[1743780437810,5.5384,1804.7,1804.6,1.10881]
[1743780438012,2.4397,1804.8,1804.7,1.10874]
[1743780438221,5.5801,1805.3,1804.7,3.2078]
[1743780438408,2.4397,1805.0,1804.5,3.2078]
[1743780438611,3.2078,1804.8,1804.3,3.21611486]
[1743780438807,5.97967,1804.7,1804.3,0.00831486]
[1743780439021,1.10919,1804.0,1803.7,2.4607]
[1743780439215,2.3943,1803.9,1803.6,5.756]
[1743780439420,1.10932,1803.8,1803.7,40.8]
[1743780439622,8.7462,1803.8,1803.7,41.90936]
[1743780439829,17.21577576,1803.8,1803.7,40.8]
[1743780440014,22.11007576,1803.8,1803.7,36.4887]
[1743780440210,19.61010576,1803.8,1803.6,0.00831486]
[1743780440520,6.64776,1803.7,1803.6,0.00831486]
[1743780440818,7.9327,1803.7,1803.6,0.00831486]
[1743780441017,18.90233576,1803.7,1803.6,0.00831486]
[1743780441223,4.8943,1803.7,1802.9,3.2078]
[1743780441521,5.6021,1803.7,1803.0,2.3012]
[1743780441722,1.10952,1803.5,1803.2,1.10966]
[1743780441924,2.3943,1803.4,1803.3,1.10961]
[1743780442219,0.00831486,1803.9,1803.8,1.1093]
[1743780442622,2.8366,1804.0,1803.9,1.10924]
[1743780442825,4.31663,1804.6,1804.3,1.10899]
[1743780443021,3.2078,1804.6,1804.1,4.31688]
[1743780443230,3.2078,1804.5,1804.2,40.8]
[1743780443421,6.0022,1804.7,1804.2,40.8]
[1743780443619,2.7944,1804.7,1804.5,1.10883]
[1743780443817,0.00831486,1804.6,1804.5,1.10887]
[1743780444116,2.84491486,1804.6,1804.5,1.10887]
[1743780444621,2.84491486,1804.6,1804.5,4.31667]
[1743780444822,2.84491486,1804.6,1804.3,0.00831486]
[1743780445019,4.31673,1804.4,1804.3,0.00831486]
[1743780445423,1.10893,1804.4,1804.3,0.00831486]
[1743780445622,2.7855,1804.4,1804.3,0.00831486]
[1743780446134,1.10921,1804.0,1803.8,4.31709]
[1743780446318,2.7855,1803.9,1803.8,1.10929]
[1743780446727,2.7855,1803.9,1803.8,41.90929]
[1743780446916,2.7855,1803.9,1803.8,41.9093]
[1743780447819,4.31675,1804.4,1803.8,44.4093]
[1743780448020,2.7855,1804.3,1804.1,1.10907]
[1743780448225,2.7855,1804.3,1803.9,3.2078]
[1743780448619,2.7855,1804.3,1804.2,1.10905]
[1743780449021,0.00831486,1804.6,1804.5,1.10887]
[1743780449828,15.70384698,1805.2,1804.8,2.77171]
[1743780450025,2.6161,1805.1,1805.0,1.10856]
[1743780450333,5.38748,1805.1,1804.5,5.685]
[1743780450629,5.3003,1805.1,1804.9,3.2078]
[1743780450821,2.6161,1805.1,1805.0,1.10856]
[1743780451023,12.90934698,1805.2,1805.1,1.1085]
[1743780451223,0.00831486,1805.2,1805.1,4.3163]
[1743780451428,0.00831486,1805.2,1805.1,45.1163]
[1743780452026,12.90934698,1806.0,1805.9,1.10801]
[1743780452323,14.01729698,1806.0,1805.7,1.10808]
[1743780452522,3.2078,1805.8,1805.2,3.2078]
[1743780452726,2.781,1805.7,1805.3,40.8]
[1743780452927,3.2078,1805.4,1804.4,34.927]
[1743780453123,5.9789,1805.2,1804.5,3.2078]
[1743780453318,1.10868,1804.8,1804.7,0.00831486]
[1743780453523,3.2078,1804.8,1804.1,5.9963]
[1743780453725,4.31671,1804.5,1804.2,1.10903]
[1743780453922,2.781,1804.4,1804.3,1.10899]
[1743780454123,3.2078,1804.8,1804.3,4.31679]
[1743780454330,2.7266,1804.7,1804.6,1.10881]
[1743780455130,3.83536,1804.7,1804.5,0.00831486]
[1743780455427,2.7266,1804.7,1804.5,0.00831486]
[1743780455834,2.7266,1804.7,1804.6,1.10881]
[1743780456429,2.7266,1804.7,1804.5,0.00831486]
[1743780456630,2.7266,1804.7,1804.6,1.10881]
[1743780456830,2.7266,1804.7,1804.6,40.8]
[1743780457228,2.7266,1804.7,1804.6,41.90881]
[1743780457430,2.7266,1804.7,1804.6,44.78111]
[1743780457726,3.90389,1805.0,1804.7,1.1087]
[1743780457932,2.836,1804.9,1804.6,46.8801]
[1743780458230,2.836,1804.9,1804.8,1.10868]
[1743780458632,0.00831486,1805.1,1805.0,1.10856]
[1743780459032,0.00831486,1805.1,1804.9,1.10857]
[1743780459235,1.10859,1805.0,1804.7,1.10873]
[1743780459428,2.836,1804.9,1804.8,1.10868]
[1743780460130,2.836,1804.9,1804.6,40.8]
[1743780460431,6.0438,1804.9,1804.6,40.8]
[1743780460631,4.31654,1804.7,1804.6,40.8]
[1743780461934,6.99894,1804.7,1804.6,40.8]
[1743780462331,5.8902,1804.7,1804.6,40.8]
[1743780462728,9.49894,1804.7,1804.6,40.8]
[1743780463429,1.10881,1804.6,1804.5,0.00831486]
[1743780463736,3.87721,1804.6,1804.5,0.00831486]
[1743780464034,6.37721,1804.6,1804.5,0.00831486]
[1743780464229,5.2684,1804.6,1803.7,34.927]
[1743780464437,1.10906,1804.2,1803.8,40.8]
[1743780464634,2.7684,1804.1,1804.0,1.10917]
[1743780465536,4.86e-06,1804.2,1804.1,1.10911]
[1743780465736,4.86e-06,1804.2,1804.1,3.86141]
[1743780465936,4.86e-06,1804.2,1804.1,6.36141]
[1743780466138,4.86e-06,1804.2,1804.1,47.16141]
[1743780466334,2.7684,1804.9,1804.8,1.10868]
[1743780466635,5.9965,1805.7,1805.0,2.77141]
[1743780466834,6.1266,1806.0,1805.5,3.2078]
[1743780467040,22.56829322,1805.9,1805.6,40.8]
[1743780467235,19.36049322,1805.9,1805.6,40.8]
[1743780467436,1.10813,1805.7,1805.6,40.8]
[1743780468141,19.36880808,1805.9,1805.6,40.8]
[1743780468434,1.10813,1805.7,1805.6,40.8]
[1743780468742,19.36880808,1805.9,1805.7,1.10813]
[1743780469035,19.36880808,1805.9,1805.7,4.31593]
[1743780469234,19.36880808,1805.9,1805.7,9.60523]
[1743780469437,16.04296731,1805.8,1805.7,9.60523]
[1743780469636,0.00831486,1805.9,1805.8,1.10807]
[1743780470039,0.00831486,1805.9,1805.8,3.60807]
[1743780470835,0.00831486,1805.9,1805.8,10.7988897]
[1743780470836,4.86e-06,1805.9,1805.8,10.7988897]
[1743780471138,4.86e-06,1805.9,1805.8,3.60807]
[1743780473036,4.86e-06,1805.9,1805.8,1.10807]
[1743780475233,4.86e-06,1805.9,1805.7,11.5141]
[1743780475438,4.86e-06,1805.9,1805.8,1.10807]
[1743780475638,4.86e-06,1805.9,1805.8,3.91227]
[1743780476542,4.86e-06,1805.9,1805.8,1.10807]
[1743780479237,4.86e-06,1805.9,1805.6,40.8]
[1743780479441,1.10819,1805.6,1805.5,0.00831486]
[1743780479745,1.10849,1805.2,1804.7,5.7132]
[1743780479947,1.1085,1805.1,1804.8,44.0078]
[1743780480245,5.9353,1805.1,1804.4,5.9801]
[1743780480447,3.83603,1805.1,1804.8,1.10865]
[1743780480642,4.31636,1805.0,1804.9,40.8]
[1743780480837,2.7275,1805.0,1804.9,41.90862]
[1743780481237,5.9353,1805.0,1804.8,0.00831486]
[1743780481640,2.7275,1805.0,1804.9,40.8]
[1743780481941,0.00831486,1805.1,1805.0,1.10856]
[1743780482245,4.86e-06,1805.1,1805.0,7.25886]
[1743780482448,4.86e-06,1805.1,1805.0,9.75886]
[1743780482642,4.86e-06,1805.1,1805.0,57.87261284]
[1743780483141,3.2078,1806.2,1805.8,1.10806]
[1743780483443,5.427,1806.3,1805.1,5.54247]
[1743780483444,1.10825,1805.5,1805.3,1.10834]
[1743780483644,2.77018,1805.8,1805.3,1.10834]
[1743780483645,2.84,1805.4,1805.3,1.10834]
[1743780483946,2.84,1805.4,1805.0,40.8]
[1743780484143,2.84,1805.4,1805.2,1.10842]
[1743780484440,2.84831486,1805.4,1805.3,1.10838]
[1743780485838,0.00831486,1805.4,1805.3,1.10838]
[1743780486040,0.00831486,1805.4,1805.3,3.84418]
[1743780486240,9.0987,1806.2,1805.8,1.10803]
[1743780486541,10.20656,1806.2,1805.9,1.10801]
[1743780486845,10.20656,1806.2,1805.6,2.77049]
[1743780486846,1.10789,1806.1,1806.0,40.8]
[1743780487043,4.31569,1806.1,1806.0,40.8]
[1743780487244,6.81569,1806.1,1806.0,40.8]
[1743780487447,3.2078,1806.1,1806.0,41.90795]
[1743780487643,8.6116,1806.1,1804.7,3.2078]
[1743780487845,3.2078,1805.2,1804.6,3.2078]
[1743780488142,3.2078,1804.9,1804.8,1.10865]
[1743780488341,2.9038,1805.1,1804.7,43.5351]
[1743780488536,2.9038,1805.1,1804.7,46.30695]
[1743780488742,2.9038,1805.1,1804.7,43.5351]
[1743780488937,2.91211486,1805.1,1805.0,1.10856]
[1743780490246,0.00831486,1805.1,1805.0,1.10856]
[1743780490547,0.00831486,1805.1,1804.7,0.00831486]
[1743780490749,0.00831486,1805.1,1804.8,1.10868]
[1743780491047,2.77671486,1805.1,1804.7,0.00831486]
[1743780491248,4.31648,1804.8,1804.7,0.00831486]
[1743780491747,2.77187,1804.7,1804.1,2.8682]
[1743780491943,3.2078,1804.4,1803.9,5.375]
[1743780492246,2.7684,1804.3,1803.9,8.2432]
[1743780492444,3.87742,1804.3,1804.0,1.10915]
[1743780492645,2.7684,1804.3,1804.1,1.1091]
[1743780492847,2.7684,1804.3,1804.0,0.00831486]
[1743780493049,1.10909,1804.2,1804.0,0.00831486]
[1743780493349,2.7684,1804.1,1804.0,0.00831486]
[1743780493548,2.7684,1804.1,1804.0,1.11748486]
[1743780493749,3.2078,1804.6,1804.1,2.77279]
[1743780493947,2.9775,1804.5,1804.3,1.10894]
[1743780494151,2.9775,1804.5,1804.4,1.10893]
[1743780494751,3.2078,1805.0,1804.4,40.8]
[1743780494951,2.9775,1804.8,1804.5,2.9618]
[1743780495158,2.9775,1804.8,1804.6,1.10875]
[1743780495353,0.00831486,1805.1,1804.6,3.2078]
[1743780495554,0.00831486,1805.1,1805.0,1.10856]
[1743780496252,10.03797,1805.8,1805.3,2.77095]
[1743780496458,8.9299,1805.8,1805.5,1.10822]
[1743780496653,2.9775,1805.7,1805.4,1.1083]
[1743780496950,2.9775,1805.7,1805.6,1.10819]
[1743780497157,2.9775,1805.7,1805.5,1.10821]
[1743780497357,2.9775,1805.7,1805.6,1.10819]
[1743780497659,4.86e-06,1805.8,1805.7,1.10813]
[1743780497961,4.86e-06,1805.8,1805.7,4.31593]
[1743780498158,4.86e-06,1805.8,1805.7,13.92635907]
[1743780498351,4.86e-06,1805.8,1805.7,57.67915907]
[1743780499264,4.86e-06,1805.8,1805.7,58.10239292]
[1743780499558,3.2078,1806.8,1806.3,2.7694]
[1743780499759,2.8535,1806.7,1806.3,8.5048]
[1743780499964,2.8535,1806.7,1806.5,1.10762]
[1743780500266,2.8535,1806.7,1806.5,1.10761]
[1743780500563,2.8535,1806.7,1805.9,8.4918]
[1743780500564,1.10768,1806.5,1805.9,8.4918]
[1743780500758,4.31542,1806.6,1806.4,0.00831486]
[1743780500964,2.9671,1806.5,1806.4,0.00831486]
[1743780501958,2.9671,1806.5,1806.4,1.11601486]
[1743780502366,2.9671,1806.7,1806.6,1.10758]
[1743780503058,5.4671,1806.7,1806.4,1.11597486]
[1743780503253,6.1749,1806.7,1806.4,0.00831486]
[1743780503453,3.2078,1806.6,1806.4,0.00831486]
[1743780503658,3.0725,1806.5,1806.4,1.11601486]
[1743780503853,3.0725,1806.5,1806.4,0.00831486]
[1743780504670,9.88794,1806.5,1806.4,0.00831486]
[1743780506165,3.0725,1806.5,1806.4,0.00831486]
[1743780506461,6.68014,1806.5,1806.4,0.00831486]
[1743780506663,0.00831486,1806.8,1806.4,9.55681486]
[1743780506870,15.09786029,1807.3,1807.2,1.10721]
[1743780507062,15.09786029,1807.3,1807.2,4.31501]
[1743780507366,15.09786029,1807.3,1807.2,45.11501]
[1743780507367,13.73790029,1807.3,1807.2,45.11501]
[1743780507960,13.73790029,1807.3,1807.2,41.90721]
[1743780508160,16.74880029,1807.3,1807.2,41.90721]
[1743780508362,16.74880029,1807.3,1807.2,45.11501]
[1743780508569,13.73790029,1807.3,1807.2,45.11501]
[1743780509364,13.73790029,1807.3,1807.2,47.61501]
[1743780509560,13.73790029,1807.3,1807.2,40.8]
[1743780509863,13.73790029,1807.3,1807.2,45.11501]
[1743780510063,13.73790029,1807.3,1807.2,50.64201]
[1743780510468,0.00831486,1807.4,1807.3,1.10715]
[1743780510866,0.00831486,1807.4,1807.3,3.60715]
[1743780511069,0.00831486,1807.4,1807.3,1.10715]
[1743780512566,0.00831486,1807.4,1807.3,3.60715]
[1743780513066,4.86e-06,1807.4,1807.3,6.35115]
[1743780513272,4.86e-06,1807.4,1807.3,9.37375]
[1743780513471,4.86e-06,1807.4,1807.3,50.17375]
[1743780513867,4.86e-06,1807.4,1807.3,6.35115]
[1743780514062,4.86e-06,1807.4,1807.2,3.2078]
[1743780514268,3.15580486,1807.4,1807.3,1.10715]
[1743780514670,4.26291486,1807.4,1807.1,1.10723]
[1743780514971,4.315,1807.3,1807.0,41.90733]
[1743780515162,4.315,1807.3,1806.6,2.76889]
[1743780515163,4.31512,1807.1,1806.6,3.2078]
[1743780515363,3.1368,1807.0,1806.5,2.76911]
[1743780515573,4.24417,1807.0,1806.7,1.10749]
[1743780515775,3.1368,1807.0,1806.6,40.8]
[1743780516071,1.10741,1806.9,1806.7,1.1075]
[1743780516368,4.31524,1806.9,1806.6,41.90754]
[1743780516562,4.24429,1806.8,1806.6,40.8]